bitfinex/quotes_SOLUSD_20250315
["timestamp","ask_amount","ask_price","bid_price","bid_amount"]
[1742054648988,13.0460796,135.3,135.28,83.03869545]
[1742054649569,7.3887,135.35,135.28,64.55859545]
[1742054649570,13.0460796,135.29,135.28,64.55859545]
[1742054649979,13.0460796,135.29,135.28,64.30859545]
[1742054650194,13.0460796,135.3,135.28,64.30859545]
[1742054650492,13.0460796,135.29,135.28,64.30859545]
[1742054652500,13.0460796,135.29,135.28,57.16659545]
[1742054658785,20.4375796,135.29,135.28,57.16659545]
[1742054659699,20.4375796,135.29,135.24,57.16659545]
[1742054659912,13.0460796,135.25,135.24,57.16659545]
[1742054662209,72.624098,135.25,135.24,57.16659545]
[1742054663476,0.28432314,135.24,135.21,57.19659545]
[1742054663690,13.0460796,135.22,135.21,57.19659545]
[1742054664108,0.28432314,135.21,135.16,64.56509545]
[1742054664310,13.0460796,135.17,135.16,64.56509545]
[1742054665627,13.0460796,135.19,135.16,64.56509545]
[1742054667185,13.0460796,135.19,135.16,83.06159545]
[1742054669412,13.0460796,135.18,135.16,83.06159545]
[1742054672284,13.0460796,135.2,135.16,83.06159545]
[1742054672604,13.0460796,135.19,135.16,83.06159545]
[1742054673910,20.0,135.21,135.16,83.06159545]
[1742054674107,13.0460796,135.19,135.16,83.06159545]
[1742054675295,13.0460796,135.19,135.16,83.09159545]
[1742054679095,13.0460796,135.18,135.16,83.09159545]
[1742054679903,13.0460796,135.17,135.16,64.59509545]
[1742054680104,13.0460796,135.17,135.16,57.19659545]
[1742054680310,13.0460796,135.17,135.16,64.59519545]
[1742054683490,13.0460796,135.17,135.16,57.19659545]
[1742054684809,13.0460796,135.17,135.16,64.59519545]
[1742054688910,13.0460796,135.17,135.16,57.19659545]
[1742054689108,65.51472114,135.17,135.16,0.03]
[1742054701593,13.0460796,135.17,135.16,0.03]
[1742054703115,0.063,135.21,135.16,57.19659545]
[1742054703422,13.1090796,135.21,135.17,18.64964886]
[1742054705159,13.0460796,135.2,135.18,7.3975]
[1742054706643,13.0460796,135.19,135.18,7.3975]
[1742054706945,13.0460796,135.19,135.16,64.59509545]
[1742054707128,65.230398,135.17,135.16,57.19659545]
[1742054707438,65.230398,135.17,135.16,0.03]
[1742054709032,65.230398,135.17,135.16,7.4286]
[1742054709211,13.0460796,135.17,135.16,0.03]
[1742054711019,65.230398,135.17,135.16,0.03]
[1742054711221,65.230398,135.17,135.14,57.22959545]
[1742054711429,13.0460796,135.15,135.14,57.22959545]
[1742054714939,13.0460796,135.15,135.14,0.063]
[1742054722435,13.33040274,135.15,135.14,0.063]
[1742054725538,13.0460796,135.15,135.14,0.063]
[1742054727742,13.0460796,135.15,135.14,7.4627]
[1742054734020,11.54893716,135.19,135.14,7.4627]
[1742054734021,13.0460796,135.17,135.14,83.12859545]
[1742054734536,0.063,135.16,135.14,83.12859545]
[1742054734954,11.54893716,135.19,135.14,97.69047505]
[1742054734955,24.59501676,135.19,135.14,97.69047505]
[1742054736128,11.54893716,135.19,135.16,25.8951]
[1742054736437,11.54893716,135.19,135.16,38.9411796]
[1742054736636,13.1090796,135.21,135.16,96.10777505]
[1742054737234,0.063,135.21,135.17,31.69572846]
[1742054737746,0.063,135.21,135.17,38.12292846]
[1742054738246,0.063,135.21,135.18,38.9373796]
[1742054739131,0.0001,135.21,135.2,33.21152846]
[1742054739446,11.54893716,135.24,135.22,57.16649545]
[1742054740043,13.0460796,135.26,135.22,57.16649545]
[1742054740256,11.54893716,135.27,135.24,25.8798]
[1742054740429,11.54893716,135.27,135.25,18.64964886]
[1742054740629,11.54893716,135.27,135.25,31.69572846]
[1742054741062,11.54893716,135.27,135.26,13.0460796]
[1742054741354,11.54893716,135.27,135.26,33.21152846]
[1742054742554,11.54893716,135.27,135.26,40.60462846]
[1742054742760,0.063,135.29,135.26,59.08752846]
[1742054743935,0.063,135.29,135.27,18.64964886]
[1742054744253,0.063,135.29,135.27,75.81614431]
[1742054744555,0.063,135.29,135.28,7.392]
[1742054745257,0.063,135.29,135.28,83.20814431]
[1742054746265,0.063,135.29,135.28,64.55849545]
[1742054747465,20.44906911,135.29,135.28,64.55849545]
[1742054747767,20.44906911,135.29,135.26,57.16649545]
[1742054747967,20.38606911,135.27,135.26,57.16649545]
[1742054752070,20.38606911,135.27,135.26,64.55959545]
[1742054752365,20.38606911,135.28,135.26,64.55959545]
[1742054752868,0.063,135.29,135.26,64.55959545]
[1742054753043,0.063,135.29,135.27,39.03571797]
[1742054753454,0.063,135.29,135.27,40.14401949]
[1742054753660,0.063,135.29,135.28,26.04164886]
[1742054756459,0.063,135.3,135.28,26.04164886]
[1742054756954,0.063,135.3,135.28,7.392]
[1742054757181,20.44906911,135.3,135.28,7.392]
[1742054758276,20.44906911,135.3,135.27,7.3926]
[1742054758861,20.44906911,135.3,135.27,64.55909545]
[1742054759062,0.063,135.3,135.27,83.04059545]
[1742054759263,0.063,135.3,135.27,103.42666456]
[1742054759581,0.063,135.3,135.27,83.04059545]
[1742054760476,0.063,135.3,135.28,18.64964886]
[1742054762084,20.44906911,135.35,135.3,18.64964886]
[1742054762383,0.063,135.35,135.32,46.25056911]
[1742054763059,0.0001,135.35,135.33,39.03571797]
[1742054763256,0.0001,135.35,135.34,39.03571797]
[1742054763890,0.0001,135.35,135.34,40.14350682]
[1742054764065,0.0001,135.35,135.34,40.42782996]
[1742054764267,0.0001,135.35,135.34,46.80782996]
[1742054764478,0.0001,135.35,135.34,54.19652996]
[1742054767673,0.03,135.38,135.37,7.3871]
[1742054767874,0.03,135.38,135.37,64.55349545]
[1742054768267,0.03,135.38,135.37,103.58921342]
[1742054768478,20.44906911,135.43,135.38,18.64964886]
[1742054768663,0.063,135.43,135.39,20.38606911]
[1742054769084,20.44906911,135.43,135.38,96.20211342]
[1742054769296,20.38606911,135.42,135.38,75.81604431]
[1742054769782,20.38606911,135.42,135.39,7.386]
[1742054770675,20.44906911,135.43,135.39,7.386]
[1742054770983,0.063,135.43,135.4,18.64964886]
[1742054771164,0.063,135.43,135.4,39.03571797]
[1742054771360,0.063,135.43,135.4,20.38606911]
[1742054771668,0.063,135.43,135.39,109.78356456]
[1742054771866,0.063,135.43,135.4,20.38606911]
[1742054772286,0.063,135.43,135.41,20.38606911]
[1742054772586,0.063,135.43,135.41,77.55246456]
[1742054772789,0.063,135.43,135.41,57.16639545]
[1742054773784,0.063,135.43,135.42,7.3844]
[1742054776389,20.44906911,135.43,135.41,57.16639545]
[1742054776683,20.38606911,135.42,135.41,57.16639545]
[1742054778290,20.0,135.39,135.36,57.16639545]
[1742054778495,20.38606911,135.37,135.36,57.16639545]
[1742054779630,20.38606911,135.37,135.36,64.55409545]
[1742054780188,20.38606911,135.38,135.36,64.55409545]
[1742054780583,20.38606911,135.39,135.36,64.55409545]
[1742054780785,20.38606911,135.4,135.36,64.55409545]
[1742054780988,20.38606911,135.39,135.36,64.55409545]
[1742054782001,8.2288,135.43,135.37,39.03571797]
[1742054782002,20.38606911,135.42,135.37,39.03571797]
[1742054782176,20.38606911,135.42,135.37,96.20211342]
[1742054782374,1.6354,135.43,135.37,96.20211342]
[1742054782375,0.063,135.43,135.4,7.3855]
[1742054782675,0.063,135.43,135.41,18.64964886]
[1742054782885,0.063,135.43,135.42,20.38606911]
[1742054783081,0.063,135.43,135.41,96.20211342]
[1742054783483,0.063,135.43,135.41,75.81604431]
[1742054783878,0.063,135.43,135.41,96.20211342]
[1742054784297,0.03,135.44,135.42,1.10715516]
[1742054784480,0.03,135.44,135.43,7.3838]
[1742054784683,0.03,135.44,135.43,64.55019545]
[1742054785506,0.0001,135.44,135.43,83.19984431]
[1742054786578,0.063,135.46,135.45,7.3827]
[1742054786800,0.063,135.46,135.45,26.03234886]
[1742054787204,32.60279233,135.46,135.44,64.54939545]
[1742054787398,32.53979233,135.45,135.44,83.19904431]
[1742054789003,32.60279233,135.46,135.44,83.19904431]
[1742054790483,32.53979233,135.45,135.44,64.54939545]
[1742054790691,32.53979233,135.45,135.44,64.54959545]
[1742054791113,32.53979233,135.45,135.44,57.16629545]
[1742054791614,32.53979233,135.45,135.44,64.54959545]
[1742054792409,32.53979233,135.45,135.44,57.16629545]
[1742054792915,32.53979233,135.45,135.44,64.54959545]
[1742054793307,0.063,135.46,135.44,64.54959545]
[1742054793619,32.60279233,135.46,135.44,64.54959545]
[1742054794324,0.063,135.46,135.44,64.54959545]
[1742054798430,0.063,135.46,135.44,64.54959545]
[1742054800902,0.063,135.46,135.45,26.03234886]
[1742054801238,0.063,135.46,135.45,7.3827]
[1742054801426,32.60279233,135.46,135.45,7.3827]
[1742054801924,0.063,135.46,135.45,26.03234886]
[1742054805832,0.063,135.46,135.45,83.19864431]
[1742054806617,0.0001,135.46,135.45,83.19864431]
[1742054812515,20.33516531,135.46,135.45,64.54899545]
[1742054821238,0.0001,135.46,135.45,64.54899545]
[1742054821627,0.0001,135.46,135.45,83.19864431]
[1742054823121,20.33516531,135.46,135.45,64.54899545]
[1742054825443,20.33516531,135.46,135.45,57.16629545]
[1742054827130,48.05243062,135.46,135.45,57.16629545]
[1742054827331,20.33516531,135.46,135.45,57.16629545]
[1742054830232,13.02277825,135.46,135.45,57.16629545]
[1742054831439,13.02277825,135.46,135.45,64.54899545]
[1742054833744,0.0001,135.46,135.45,83.19864431]
[1742054833925,13.02267825,135.49,135.46,57.16619545]
[1742054834246,13.02267825,135.48,135.46,57.16619545]
[1742054834843,13.02267825,135.47,135.46,75.81584431]
[1742054835035,13.02267825,135.47,135.46,57.16619545]
[1742054835843,13.02267825,135.47,135.46,64.54839545]
[1742054836146,13.02267825,135.47,135.46,57.16619545]
[1742054837346,13.02267825,135.47,135.44,64.61239545]
[1742054837555,13.02267825,135.45,135.44,64.61239545]
[1742054838357,20.34770923,135.45,135.44,64.61239545]
[1742054844655,20.34770923,135.46,135.44,64.61239545]
[1742054844843,20.34770923,135.47,135.44,64.61239545]
[1742054845152,20.34770923,135.47,135.44,83.07069545]
[1742054845630,18.34770923,135.47,135.44,83.07069545]
[1742054846055,20.34770923,135.48,135.45,18.64964886]
[1742054846255,20.34770923,135.48,135.45,75.81584431]
[1742054846953,20.34770923,135.48,135.46,7.3822]
[1742054848051,20.34770923,135.47,135.46,7.3822]
[1742054849750,20.34770923,135.47,135.46,64.54839545]
[1742054850145,20.34770923,135.47,135.46,57.16619545]
[1742054852161,20.34770923,135.47,135.46,64.54839545]
[1742054853032,20.34770923,135.48,135.46,83.00399545]
[1742054853258,20.34770923,135.47,135.46,83.00399545]
[1742054856158,20.34770923,135.47,135.46,64.54839545]
[1742054856463,20.34770923,135.47,135.46,57.16619545]
[1742054856947,20.34770923,135.47,135.44,64.61229545]
[1742054857143,20.34770923,135.45,135.44,64.61229545]
[1742054860457,40.69541846,135.45,135.44,0.063]
[1742054861349,42.36081846,135.45,135.44,0.063]
[1742054863369,42.36081846,135.45,135.41,57.16619545]
[1742054863667,20.34770923,135.42,135.41,57.16619545]
[1742054864371,20.34770923,135.42,135.39,7.3857]
[1742054864559,20.34770923,135.4,135.37,7.3871]
[1742054864759,20.34770923,135.38,135.37,64.55329545]
[1742054865572,40.69541846,135.38,135.36,0.063]
[1742054865747,20.34770923,135.37,135.36,0.063]
[1742054866771,26.72770923,135.37,135.36,0.063]
[1742054867965,13.15373716,135.4,135.36,0.063]
[1742054868162,20.34770923,135.37,135.36,0.063]
[1742054872285,27.01203237,135.37,135.36,0.063]
[1742054872984,26.72770923,135.37,135.36,0.063]
[1742054874165,20.34770923,135.37,135.36,0.063]
[1742054882676,20.34770923,135.39,135.36,57.22919545]
[1742054883801,20.34770923,135.39,135.36,56.72919545]
[1742054884181,6.52216157,135.42,135.36,56.72919545]
[1742054884387,20.34770923,135.37,135.36,56.72919545]
[1742054884795,20.34770923,135.37,135.36,64.11689545]
[1742054886703,20.34770923,135.38,135.36,64.11689545]
[1742054887298,20.34770923,135.38,135.36,64.17989545]
[1742054888600,6.52216157,135.42,135.36,82.64909545]
[1742054888803,20.34770923,135.38,135.36,82.64909545]
[1742054892213,20.34770923,135.37,135.36,82.64909545]
[1742054892707,20.34770923,135.37,135.36,64.17989545]
[1742054894501,13.03677987,135.37,135.36,64.17989545]
[1742054899523,13.03677987,135.37,135.36,56.79219545]
[1742054899811,13.03677987,135.37,135.36,0.063]
[1742054909123,20.0,135.4,135.36,0.063]
[1742054909434,13.03677987,135.38,135.36,0.063]
[1742054909727,13.03677987,135.37,135.36,0.063]
[1742054910718,13.06677987,135.37,135.36,0.063]
[1742054918026,13.06677987,135.37,135.36,0.063]
[1742054918326,13.35110301,135.37,135.36,0.063]
[1742054919215,20.73820301,135.37,135.36,0.063]
[1742054920925,13.35110301,135.37,135.36,0.063]
[1742054921419,13.06677987,135.37,135.36,0.063]
[1742054922421,0.03,135.37,135.36,0.063]
[1742054922626,13.06677987,135.37,135.36,0.063]
[1742054924224,0.03,135.37,135.36,0.063]
[1742054924412,13.06677987,135.37,135.36,0.063]
[1742054946734,20.45387987,135.37,135.36,0.063]
[1742054946937,13.06677987,135.37,135.36,0.063]
[1742054947247,20.45387987,135.37,135.36,0.063]
[1742054947822,32.00281703,135.37,135.36,0.063]
[1742054948443,24.61571703,135.37,135.36,0.063]
[1742054950144,32.28714017,135.37,135.36,0.063]
[1742054951153,24.90004017,135.37,135.36,0.063]
[1742054951527,13.35110301,135.37,135.36,0.063]
[1742054955045,13.35110301,135.37,135.32,64.18189545]
[1742054955046,0.28432314,135.36,135.32,64.18189545]
[1742054955255,13.03677987,135.33,135.32,7.4527]
[1742054955551,13.03677987,135.33,135.32,0.063]
[1742054960854,6.38,135.35,135.32,0.063]
[1742054961153,13.03677987,135.33,135.32,0.063]
[1742054980668,13.32110301,135.33,135.32,0.063]
[1742054981763,1.5157,135.32,135.31,0.063]
[1742054981947,66.69959935,135.32,135.31,0.063]
[1742054982975,74.37372249,135.32,135.3,0.063]
[1742054983267,71.56389935,135.31,135.3,0.063]
[1742054994178,65.18389935,135.31,135.3,0.063]
[1742054994368,71.56389935,135.31,135.3,0.063]
[1742055005381,71.59389935,135.31,135.3,0.063]
[1742055019396,20.28432314,135.29,135.28,0.063]
[1742055019578,33.32110301,135.29,135.28,0.063]
[1742055020188,40.71260301,135.29,135.28,0.063]
[1742055020398,40.71260301,135.29,135.26,0.063]
[1742055020594,13.32110301,135.27,135.26,0.063]
[1742055027891,20.71370301,135.27,135.26,0.063]
[1742055029707,20.71370301,135.27,135.25,0.03]
[1742055029901,19.41677987,135.26,135.25,0.03]
[1742055031097,26.80987987,135.26,135.25,0.03]
[1742055032598,79.24132249,135.26,135.25,0.03]
[1742055033687,27.09420301,135.26,135.25,0.03]
[1742055034714,38.64314017,135.26,135.25,0.03]
[1742055035514,44.72221334,135.26,135.25,0.03]
[1742055036318,115.51898168,135.26,135.25,0.03]
[1742055037197,103.97004452,135.26,135.25,0.03]
[1742055039122,103.97004452,135.26,135.22,0.063]
[1742055039321,13.03677987,135.23,135.22,0.063]
[1742055041317,39.36555187,135.23,135.22,0.063]
[1742055041518,20.0,135.2,135.18,0.063]
[1742055041718,33.03677987,135.19,135.18,0.063]
[1742055045501,12.04893715,135.25,135.19,56.72919545]
[1742055045707,11.54893716,135.25,135.21,14.57457987]
[1742055046113,13.03677987,135.23,135.21,1.5378]
[1742055046324,13.03677987,135.22,135.18,64.73249545]
[1742055046527,0.28432314,135.23,135.18,1.6008]
[1742055046704,13.03677987,135.19,135.18,1.6008]
[1742055047224,13.03677987,135.2,135.18,8.9983]
[1742055047422,13.03677987,135.22,135.18,27.4921]
[1742055047630,33.03677987,135.23,135.18,84.22129545]
[1742055047923,33.03677987,135.23,135.18,97.25807532]
[1742055048125,33.03677987,135.23,135.18,84.22129545]
[1742055048621,13.03677987,135.22,135.18,84.22129545]
[1742055049203,33.03677987,135.23,135.18,84.22129545]
[1742055049414,33.03677987,135.23,135.18,97.25807532]
[1742055049610,13.03677987,135.22,135.18,121.20899545]
[1742055051324,13.03677987,135.21,135.18,84.22129545]
[1742055052429,13.03677987,135.2,135.18,84.22129545]
[1742055054727,13.03677987,135.21,135.18,84.22129545]
[1742055055827,13.03677987,135.2,135.18,84.22129545]
[1742055057208,13.03677987,135.19,135.18,64.18969545]
[1742055057411,13.03677987,135.19,135.18,7.4605]
[1742055057626,20.0,135.23,135.18,7.4605]
[1742055057928,13.03677987,135.19,135.18,7.4605]
[1742055058514,13.03677987,135.19,135.18,0.063]
[1742055070734,13.03677987,135.21,135.18,0.063]
[1742055071629,13.03677987,135.2,135.18,0.063]
[1742055072829,13.03677987,135.2,135.18,7.4605]
[1742055076947,13.03677987,135.21,135.18,25.9543]
[1742055080336,13.03677987,135.19,135.18,25.9543]
[1742055080541,13.03677987,135.2,135.18,25.9543]
[1742055081544,13.03677987,135.2,135.18,7.4605]
[1742055081845,13.03677987,135.19,135.18,7.4605]
[1742055085151,13.03677987,135.19,135.18,0.063]
[1742055100068,13.09977987,135.19,135.18,0.063]
[1742055101975,33.09977987,135.19,135.18,0.063]
[1742055105659,13.09977987,135.19,135.18,0.063]
[1742055105962,0.063,135.19,135.18,0.063]
[1742055113764,0.063,135.19,135.18,7.4605]
[1742055116670,0.063,135.2,135.18,7.4605]
[1742055122561,0.063,135.2,135.18,64.18969545]
[1742055126384,0.0001,135.2,135.18,77.22647532]
[1742055132306,0.0001,135.2,135.19,20.43367987]
[1742055132593,0.0001,135.2,135.19,26.81367987]
[1742055134201,0.0001,135.2,135.19,83.54287532]
[1742055135294,0.0001,135.22,135.21,13.03677987]
[1742055135498,0.0001,135.22,135.21,69.76597532]
[1742055137195,0.0001,135.22,135.21,77.16187532]
[1742055139004,0.0001,135.22,135.21,95.81152418]
[1742055139501,0.063,135.26,135.21,151.28072418]
[1742055139671,0.063,135.26,135.22,13.03677987]
[1742055139872,0.063,135.26,135.22,69.76597532]
[1742055141601,0.063,135.26,135.23,25.8818]
[1742055142394,13.09977987,135.26,135.23,25.8818]
[1742055143004,13.09977987,135.26,135.23,82.61099545]
[1742055144376,0.063,135.26,135.23,82.61099545]
[1742055147003,13.03677987,135.24,135.22,7.3951]
[1742055147311,13.03677987,135.24,135.21,7.4586]
[1742055147312,13.03677987,135.23,135.21,7.4586]
[1742055147481,13.03677987,135.22,135.21,0.063]
[1742055151102,20.71640301,135.22,135.21,0.063]
[1742055153203,13.03677987,135.22,135.21,0.063]
[1742055161022,13.32110301,135.22,135.21,0.063]
[1742055161197,38.35075187,135.22,135.21,0.063]
[1742055161792,20.0,135.19,135.18,0.063]
[1742055162024,33.03677987,135.19,135.18,0.063]
[1742055167097,13.03677987,135.19,135.18,0.063]
[1742055167905,13.03677987,135.2,135.18,0.063]
[1742055170235,13.03677987,135.19,135.18,0.063]
[1742055172901,13.03677987,135.2,135.18,0.063]
[1742055174027,13.06677987,135.21,135.18,0.063]
[1742055174914,0.03,135.21,135.18,0.063]
[1742055178240,0.03,135.21,135.18,56.79219545]
[1742055180343,0.03,135.21,135.19,7.3969]
[1742055181223,13.06677987,135.21,135.19,7.3969]
[1742055185040,0.03,135.21,135.19,7.3969]
[1742055185640,0.03,135.24,135.19,38.92607987]
[1742055185843,0.03,135.24,135.19,95.65527532]
[1742055186025,13.06677987,135.24,135.19,95.65527532]
[1742055186226,0.03,135.24,135.2,13.03677987]
[1742055187028,0.03,135.24,135.23,13.03677987]
[1742055187231,0.03,135.24,135.23,69.76597532]
[1742055187735,0.03,135.24,135.23,64.12399545]
[1742055188722,0.03,135.24,135.23,77.16077532]
[1742055190445,0.0001,135.24,135.23,77.16077532]
[1742055190744,0.0001,135.26,135.24,18.64964886]
[1742055190947,0.0001,135.26,135.25,13.03677987]
[1742055191341,0.0001,135.26,135.24,31.68642873]
[1742055191646,0.0001,135.26,135.23,82.61099545]
[1742055191647,0.0001,135.26,135.25,20.0]
[1742055192459,13.03687987,135.26,135.25,27.3937]
[1742055192751,0.0001,135.26,135.25,27.3937]
[1742055193728,13.03687987,135.26,135.24,7.394]
[1742055194351,0.0001,135.26,135.24,7.394]
[1742055198758,0.0001,135.26,135.24,64.12319545]
[1742055209572,0.0001,135.26,135.24,77.15997532]
[1742055209755,0.0001,135.26,135.25,13.03677987]
[1742055210971,0.0001,135.26,135.25,20.43047987]
[1742055211567,0.0001,135.26,135.25,7.3937]
[1742055213571,0.0001,135.26,135.25,64.12289545]
[1742055215977,0.0001,135.26,135.25,77.15967532]
[1742055216358,0.0001,135.26,135.25,64.12289545]
[1742055216757,0.0001,135.26,135.25,77.15967532]
[1742055221673,0.0001,135.26,135.25,95.80932418]
[1742055227560,0.0001,135.26,135.25,82.77254431]
[1742055228377,0.0001,135.26,135.25,64.12289545]
[1742055228984,0.0001,135.26,135.25,77.15967532]
[1742055231988,0.0001,135.26,135.25,95.80932418]
[1742055239601,0.0001,135.26,135.25,77.15967532]
[1742055240175,0.0001,135.26,135.25,64.12289545]
[1742055240867,0.0001,135.26,135.25,77.15967532]
[1742055242174,0.0001,135.26,135.25,95.80932418]
[1742055247270,0.0001,135.26,135.25,82.77254431]
[1742055248569,0.0001,135.26,135.25,95.80932418]
[1742055275803,0.0001,135.26,135.25,97.20217627]
[1742055276403,0.0001,135.31,135.3,13.03677987]
[1742055276595,0.0001,135.31,135.3,69.76597532]
[1742055277107,0.0001,135.31,135.3,56.72919545]
[1742055277309,0.0001,135.31,135.3,64.12009545]
[1742055279602,13.03687987,135.31,135.3,64.12009545]
[1742055281518,13.03687987,135.31,135.3,56.72919545]
[1742055283729,13.03687987,135.31,135.3,64.12009545]
[1742055285626,13.03687987,135.31,135.25,56.72919545]
[1742055285627,71.71089935,135.31,135.25,56.72919545]
[1742055285839,13.03677987,135.27,135.26,7.3931]
[1742055286027,13.03677987,135.28,135.26,64.12229545]
[1742055287017,13.03677987,135.27,135.26,64.12229545]
[1742055287215,14.55807987,135.27,135.24,0.063]
[1742055287435,13.03677987,135.25,135.24,0.063]
[1742055291517,19.56367987,135.26,135.24,0.063]
[1742055291914,14.55807987,135.27,135.24,0.063]
[1742055292117,13.03677987,135.26,135.24,0.063]
[1742055294244,14.55807987,135.27,135.24,0.063]
[1742055296240,13.03677987,135.27,135.24,0.063]
[1742055297523,13.03677987,135.25,135.24,0.063]
[1742055297908,13.03677987,135.26,135.24,0.063]
[1742055298637,13.03677987,135.27,135.24,0.063]
[1742055299112,13.06677987,135.28,135.24,0.063]
[1742055299842,13.06677987,135.28,135.24,69.82897532]
[1742055299843,0.03,135.28,135.24,69.82897532]
[1742055300844,0.03,135.28,135.25,25.8779]
[1742055303159,13.06677987,135.28,135.25,25.8779]
[1742055304448,13.06677987,135.28,135.25,82.60709545]
[1742055308954,0.03,135.28,135.25,95.64387532]
[1742055309734,0.0001,135.31,135.27,13.03677987]
[1742055309927,0.0001,135.31,135.27,69.76597532]
[1742055310362,0.0001,135.31,135.28,25.8721]
[1742055310659,0.0001,135.31,135.28,38.90887987]
[1742055312437,0.0001,135.31,135.28,25.8721]
[1742055313349,0.0001,135.31,135.28,82.60129545]
[1742055314653,0.0001,135.31,135.28,95.63807532]
[1742055314954,0.0001,135.31,135.29,13.03677987]
[1742055315449,0.0001,135.31,135.29,69.76597532]
[1742055316252,0.0001,135.31,135.29,56.72919545]
[1742055317056,0.0001,135.31,135.3,7.3909]
[1742055317249,0.0001,135.31,135.3,64.12009545]
[1742055320850,13.03687987,135.31,135.3,64.12009545]
[1742055321440,13.03687987,135.31,135.29,7.3912]
[1742055321842,13.03677987,135.3,135.28,64.12119545]
[1742055322134,13.03677987,135.29,135.28,64.12119545]
[1742055323344,13.03677987,135.29,135.28,64.18419545]
[1742055324957,13.03677987,135.29,135.28,7.455]
[1742055325335,13.03677987,135.29,135.28,0.063]
[1742055329141,13.03677987,135.3,135.28,0.063]
[1742055329452,13.03687987,135.31,135.28,0.063]
[1742055331865,13.03677987,135.3,135.28,0.063]
[1742055335662,13.03677987,135.29,135.28,0.063]
[1742055346569,52.14721948,135.31,135.28,0.063]
[1742055346780,13.03677987,135.29,135.28,0.063]
[1742055350092,45.87945187,135.29,135.28,0.063]
[1742055350388,18.933972,135.28,135.24,0.063]
[1742055350670,13.03677987,135.25,135.24,0.063]
[1742055358075,8.1591,135.29,135.24,0.063]
[1742055358286,13.03677987,135.27,135.24,0.063]
[1742055359576,13.03677987,135.26,135.24,0.063]
[1742055359781,13.03677987,135.25,135.24,56.79219545]
[1742055360366,13.03677987,135.25,135.24,64.18639545]
[1742055360866,13.03677987,135.25,135.24,56.79219545]
[1742055363086,13.03677987,135.25,135.24,0.063]
[1742055364166,13.03677987,135.25,135.24,7.4572]
[1742055364370,13.03677987,135.26,135.24,7.4572]
[1742055364684,13.03677987,135.26,135.24,0.063]
[1742055365687,13.03677987,135.25,135.24,0.063]
[1742055373179,13.03677987,135.26,135.24,0.063]
[1742055373582,13.03677987,135.28,135.24,0.063]
[1742055373985,13.03677987,135.28,135.24,56.79219545]
[1742055375479,13.03677987,135.28,135.25,25.8779]
[1742055376278,13.06677987,135.29,135.25,25.8779]
[1742055376483,0.03,135.29,135.25,95.64387532]
[1742055376882,0.03,135.29,135.25,82.60709545]
[1742055377093,0.03,135.29,135.25,95.64387532]
[1742055377482,13.06677987,135.29,135.25,82.60709545]
[1742055377680,13.03677987,135.27,135.25,64.12289545]
[1742055378508,13.06677987,135.29,135.25,64.12289545]
[1742055378686,13.06677987,135.29,135.25,82.60709545]
[1742055381785,13.03677987,135.28,135.25,64.12289545]
[1742055382090,13.03677987,135.26,135.25,56.72919545]
[1742055382311,13.03677987,135.26,135.24,64.18619545]
[1742055384089,13.03677987,135.25,135.24,56.79219545]
[1742055384890,13.03677987,135.25,135.24,0.063]
[1742055387388,13.17894144,135.25,135.24,0.063]
[1742055389091,13.03677987,135.25,135.24,0.063]
[1742055392119,65.46822249,135.25,135.24,0.063]
[1742055393319,72.86192249,135.25,135.19,7.4599]
[1742055393492,13.03677987,135.2,135.19,7.4599]
[1742055393698,13.32110301,135.2,135.19,0.063]
[1742055401521,20.71750301,135.2,135.19,0.063]
[1742055401730,13.32110301,135.2,135.19,0.063]
[1742055410512,20.71750301,135.2,135.19,0.063]
[1742055415123,39.36715187,135.2,135.19,0.063]
[1742055415317,65.46822249,135.19,135.18,0.063]
[1742055415521,13.32110301,135.19,135.18,0.063]
[1742055417310,20.71800301,135.19,135.18,0.063]
[1742055419213,20.71800301,135.19,135.17,0.063]
[1742055419416,13.03677987,135.18,135.17,0.063]
[1742055419725,20.0,135.16,135.15,0.8027594]
[1742055420032,13.03677987,135.16,135.15,0.8027594]
[1742055424631,20.43537987,135.16,135.15,0.8027594]
[1742055424837,13.03677987,135.16,135.15,0.8027594]